lending/lending_fUSD_20240411
["ID","MTS","AMOUNT","RATE_DAILY","PERIOD"]
[322185417,1712866278861,-500.0,0.00028493,2]
[322185418,1712866278872,-500.0,0.00028493,2]
[322185419,1712866278881,-500.0,0.00028493,2]
[322185420,1712866278890,-500.0,0.00028493,2]
[322185421,1712866278901,-500.0,0.00028493,2]
[322185422,1712866278911,-500.0,0.00028493,2]
[322185423,1712866278921,-500.0,0.00028493,2]
[322185424,1712866278931,-500.0,0.00028493,2]
[322185425,1712866278941,-500.0,0.00028493,2]
[322185426,1712866278952,-524.12,0.00028493,2]
[322185427,1712866278962,-500.0,0.00028493,2]
[322185428,1712866278972,-652.26,0.00028493,2]
[322185429,1712866278981,-500.0,0.00028493,2]
[322185430,1712866278992,-676.28,0.00028493,2]
[322185431,1712866279003,-500.0,0.00028493,2]
[322185432,1712866279012,-500.0,0.00028493,2]
[322185433,1712866279022,-582.53,0.00028493,2]
[322185434,1712866279032,-624.69263291,0.00028493,2]
[322185435,1712866279042,-595.04,0.00028493,2]
[322185436,1712866279052,-500.0,0.00028493,2]
[322185437,1712866279061,-500.0,0.00028493,2]
[322185438,1712866279071,-500.0,0.00028493,2]
[322185439,1712866279081,-515.68,0.00028493,2]
[322185440,1712866279091,-500.0,0.00028493,2]
[322185441,1712866279101,-500.0,0.00028493,2]
[322185442,1712866279111,-718.76,0.00028493,2]
[322185443,1712866279120,-500.0,0.00028493,2]
[322185444,1712866279322,-505.62,0.00028493,2]
[322185445,1712866279334,-947.34,0.00028493,2]
[322185446,1712866279343,-500.0,0.00028493,2]
[322185447,1712866279352,-786.91,0.00028493,2]
[322185448,1712866279362,-500.0,0.00028493,2]
[322185449,1712866279372,-500.0,0.00028493,2]
[322185450,1712866279382,-552.74,0.00028493,2]
[322185451,1712866279391,-500.0,0.00028493,2]
[322185452,1712866279401,-500.0,0.00028493,2]
[322185453,1712866279411,-546.67,0.00028493,2]
[322185454,1712866279420,-519.24,0.00028493,2]
[322185455,1712866279429,-500.0,0.00028493,2]
[322185456,1712866279438,-500.0,0.00028493,2]
[322185457,1712866279447,-1049.31,0.00028493,2]
[322185458,1712866279457,-849.21,0.00028493,2]
[322185459,1712866279466,-500.0,0.00028493,2]
[322185460,1712866279476,-719.23,0.00028493,2]
[322185461,1712866279485,-500.0,0.00028493,2]
[322185462,1712866279494,-500.0,0.00028493,2]
[322185463,1712866279503,-579.3,0.00028493,2]
[322185464,1712866279512,-500.0,0.00028493,2]
[322185465,1712866279522,-500.0,0.00028493,2]
[322185466,1712866279531,-554.93,0.00028493,2]
[322185467,1712866279540,-500.0,0.00028493,2]
[322185468,1712866279549,-727.72,0.00028493,2]
[322185469,1712866279559,-500.0,0.00028493,2]
[322185470,1712866279568,-500.0,0.00028493,2]
[322185471,1712866279578,-538.38,0.00028493,2]
[322185472,1712866279587,-691.83,0.00028493,2]
[322185473,1712866279596,-212.77363264,0.00028493,2]
[322185474,1712866279606,-500.0,0.00028493,2]
[322185475,1712866279615,-500.0,0.00028493,2]
[322185476,1712866279626,-500.0,0.00028493,2]
[322185477,1712866279635,-500.0,0.00028493,2]
[322185478,1712866279644,-698.24,0.00028493,2]
[322185479,1712866279652,-500.0,0.00028493,2]
[322185480,1712866279664,-500.0,0.00028493,2]
[322185481,1712866279675,-990.4,0.00028493,2]
[322185482,1712866279685,-500.0,0.00028493,2]
[322185483,1712866279696,-500.0,0.00028493,2]
[322185484,1712866279706,-500.0,0.00028493,2]
[322185485,1712866279716,-500.0,0.00028493,2]
[322185486,1712866279726,-500.0,0.00028493,2]
[322185487,1712866279735,-531.39,0.00028493,2]
[322185488,1712866279746,-500.0,0.00028493,2]
[322185489,1712866279757,-500.0,0.00028493,2]
[322185490,1712866279767,-653.99,0.00028493,2]
[322185491,1712866279776,-500.0,0.00028493,2]
[322185492,1712866279786,-936.9,0.00028493,2]
[322185493,1712866279796,-500.0,0.00028493,2]
[322185494,1712866279806,-500.0,0.00028493,2]
[322185495,1712866279817,-500.0,0.00028493,2]
[322185496,1712866279827,-500.0,0.00028493,2]
[322185497,1712866279836,-516.57,0.00028493,2]
[322185498,1712866279845,-1367.32,0.00028493,2]
[322185499,1712866279855,-1193.61,0.00028493,2]
[322185500,1712866279864,-500.0,0.00028493,2]
[322185501,1712866279874,-500.0,0.00028493,2]
[322185502,1712866279884,-500.0,0.00028493,2]
[322185503,1712866279893,-500.0,0.00028493,2]
[322185504,1712866279902,-500.0,0.00028493,2]
[322185505,1712866279912,-1022.91,0.00028493,2]
[322185506,1712866279923,-1247.04,0.00028493,2]
[322185507,1712866279933,-500.0,0.00028493,2]
[322185508,1712866279944,-500.0,0.00028493,2]
[322185509,1712866279953,-708.51,0.00028493,2]
[322185510,1712866279963,-533.93,0.00028493,2]
[322185511,1712866279972,-668.36,0.00028493,2]
[322185512,1712866279981,-500.0,0.00028493,2]
[322185513,1712866279990,-500.0,0.00028493,2]
[322185514,1712866280000,-1327.28,0.00028493,2]
[322185515,1712866280009,-500.0,0.00028493,2]
[322185516,1712866280019,-703.21,0.00028493,2]
[322185517,1712866280028,-500.0,0.00028493,2]
[322185518,1712866280038,-500.0,0.00028493,2]
[322185519,1712866280047,-500.0,0.00028493,2]
[322185520,1712866280056,-344.46877423,0.00028493,2]
[322185521,1712866280065,-500.0,0.00028493,2]
[322185522,1712866280075,-500.0,0.00028493,2]
[322185523,1712866280084,-1199.25,0.00028493,2]
[322185524,1712866280094,-500.0,0.00028493,2]
[322185525,1712866280103,-500.0,0.00028493,2]
[322185526,1712866280113,-500.0,0.00028493,2]
[322185527,1712866280122,-629.04,0.00028493,2]
[322185528,1712866280134,-706.9,0.00028493,2]
[322185529,1712866280144,-598.35,0.00028493,2]
[322185530,1712866280154,-500.0,0.00028493,2]
[322185531,1712866280163,-500.0,0.00028493,2]
[322185532,1712866280172,-528.74,0.00028493,2]
[322185533,1712866280182,-504.85,0.00028493,2]
[322185534,1712866280192,-500.0,0.00028493,2]
[322185535,1712866280201,-500.0,0.00028493,2]
[322185536,1712866280210,-500.0,0.00028493,2]
[322185537,1712866280220,-151.0,0.00028493,7]
[322185538,1712866280229,-847.93,0.00028493,2]
[322185539,1712866280238,-500.0,0.00028493,2]
[322185540,1712866280248,-611.42,0.00028493,2]
[322185541,1712866280257,-1206.16,0.00028493,2]
[322185542,1712866280267,-500.0,0.00028493,2]
[322185543,1712866280276,-500.0,0.00028493,2]
[322185544,1712866280285,-396.76990001,0.00028493,2]
[322185545,1712866280294,-802.61,0.00028493,2]
[322185546,1712866280304,-500.0,0.00028493,2]
[322185547,1712866280313,-500.0,0.00028493,2]
[322185548,1712866280324,-500.0,0.00028493,2]
[322185549,1712866280335,-283.1118329,0.00028493,2]
[322185550,1712866280346,-569.54,0.00028493,2]
[322185551,1712866280355,-500.0,0.00028493,2]
[322185552,1712866280366,-500.0,0.00028493,2]
[322185553,1712866280376,-589.99,0.00028493,2]
[322185554,1712866280385,-500.0,0.00028493,2]
[322185555,1712866280395,-1460.25,0.00028493,2]
[322185556,1712866280406,-500.0,0.00028493,2]
[322185557,1712866280416,-638.49,0.00028493,2]
[322185558,1712866280426,-1009.75,0.00028493,2]
[322185559,1712866280435,-500.16,0.00028493,2]
[322185560,1712866280445,-500.0,0.00028493,2]
[322185561,1712866280455,-500.0,0.00028493,2]
[322185562,1712866280465,-500.0,0.00028493,2]
[322185563,1712866280474,-538.21,0.00028493,2]
[322185564,1712866280483,-1341.17,0.00028493,2]
[322185565,1712866280494,-862.75,0.00028493,2]
[322185566,1712866280503,-716.18,0.00028493,2]
[322185567,1712866280514,-500.0,0.00028493,2]
[322185568,1712866280523,-500.0,0.00028493,2]
[322185569,1712866280533,-1295.66,0.00028493,2]
[322185570,1712866280543,-500.0,0.00028493,2]
[322185571,1712866280553,-887.01,0.00028493,2]
[322185572,1712866280562,-500.0,0.00028493,2]
[322185573,1712866280571,-673.7,0.00028493,2]
[322185574,1712866280581,-1526.25,0.00028493,2]
[322185575,1712866280591,-1187.02,0.00028493,2]
[322185576,1712866280601,-500.0,0.00028493,2]
[322185577,1712866280611,-500.0,0.00028493,2]
[322185578,1712866280621,-500.0,0.00028493,2]
[322185579,1712866280632,-646.56,0.00028493,2]
[322185580,1712866280641,-500.0,0.00028493,2]
[322185581,1712866280651,-500.0,0.00028493,2]
[322185582,1712866280661,-772.5,0.00028493,2]
[322185583,1712866280670,-1678.07,0.00028493,2]
[322185584,1712866280680,-1728.35,0.00028493,2]
[322185585,1712866280689,-500.0,0.00028493,2]
[322185586,1712866280699,-500.0,0.00028493,2]
[322185587,1712866280709,-500.0,0.00028493,2]
[322185588,1712866280719,-551.1,0.00028493,2]
[322185589,1712866280729,-500.0,0.00028493,2]
[322185590,1712866280739,-1307.13,0.00028493,2]
[322185591,1712866280748,-693.72,0.00028493,2]
[322185592,1712866280758,-891.7,0.00028493,2]
[322185593,1712866280767,-500.0,0.00028493,2]
[322185594,1712866280776,-500.0,0.00028493,2]
[322185595,1712866280786,-500.0,0.00028493,2]
[322185596,1712866280795,-569.32,0.00028493,2]
[322185597,1712866280806,-521.17,0.00028493,2]
[322185598,1712866280816,-500.0,0.00028493,2]
[322185599,1712866280826,-1535.36,0.00028493,2]
[322185600,1712866280836,-812.35,0.00028493,2]
[322185601,1712866280845,-500.0,0.00028493,2]
[322185602,1712866280855,-568.24,0.00028493,2]
[322185603,1712866280864,-500.0,0.00028493,2]
[322185604,1712866280874,-728.92,0.00028493,2]
[322185605,1712866280884,-500.0,0.00028493,2]
[322185606,1712866280894,-500.0,0.00028493,2]
[322185607,1712866280903,-545.24,0.00028493,2]
[322185608,1712866280913,-500.0,0.00028493,2]
[322185609,1712866280923,-584.91,0.00028493,2]
[322185610,1712866280932,-1293.36,0.00028493,2]
[322185611,1712866280942,-500.0,0.00028493,2]
[322185612,1712866280952,-500.0,0.00028493,2]
[322185613,1712866280962,-500.0,0.00028493,2]
[322185614,1712866280971,-500.0,0.00028493,2]
[322185615,1712866280981,-500.0,0.00028493,2]
[322185616,1712866280990,-500.0,0.00028493,2]
[322185617,1712866281000,-500.0,0.00028493,2]
[322185618,1712866281009,-692.51,0.00028493,2]
[322185619,1712866281020,-500.0,0.00028493,2]
[322185620,1712866281029,-1630.17,0.00028493,2]
[322185621,1712866281039,-812.07,0.00028493,2]
[322185622,1712866281048,-500.0,0.00028493,2]
[322185623,1712866281058,-500.0,0.00028493,2]
[322185624,1712866281068,-500.0,0.00028493,2]
[322185625,1712866281077,-570.24,0.00028493,2]
[322185626,1712866281087,-500.0,0.00028493,2]
[322185627,1712866281097,-745.69,0.00028493,2]
[322185628,1712866281106,-500.0,0.00028493,2]
[322185629,1712866281116,-500.0,0.00028493,2]
[322185630,1712866281125,-1372.95,0.00028493,2]
[322185631,1712866281136,-1242.69,0.00028493,2]
[322185632,1712866281146,-500.0,0.00028493,2]
[322185633,1712866281156,-500.0,0.00028493,2]
[322185634,1712866281166,-500.0,0.00028493,2]
[322185635,1712866281176,-1173.35,0.00028493,2]
[322185636,1712866281186,-500.0,0.00028493,2]
[322185637,1712866281196,-500.0,0.00028493,2]
[322185638,1712866281206,-500.0,0.00028493,2]
[322185639,1712866281215,-500.0,0.00028493,2]
[322185640,1712866281225,-500.0,0.00028493,2]
[322185641,1712866281234,-1888.3,0.00028493,2]
[322185642,1712866281243,-500.0,0.00028493,2]
[322185643,1712866281252,-500.0,0.00028493,2]
[322185644,1712866281262,-1191.36,0.00028493,2]
[322185645,1712866281271,-1572.47,0.00028493,2]
[322185646,1712866281280,-500.0,0.00028493,2]
[322185647,1712866281290,-1236.41,0.00028493,2]
[322185648,1712866281300,-500.0,0.00028493,2]
[322185649,1712866281309,-500.0,0.00028493,2]
[322185650,1712866281318,-500.0,0.00028493,2]
[322185651,1712866281332,-1108.31,0.00028493,2]
[322185652,1712866281342,-1141.52,0.00028493,2]
[322185653,1712866281352,-818.3,0.00028493,2]
[322185654,1712866281362,-500.0,0.00028493,2]
[322185655,1712866281375,-515.51,0.00028493,2]
[322185656,1712866281384,-560.75,0.00028493,2]
[322185657,1712866281394,-500.0,0.00028493,2]
[322185658,1712866281406,-433.81733121,0.00028493,2]
[322185659,1712866281419,-500.0,0.00028493,2]
[322185660,1712866281429,-500.0,0.00028493,2]
[322185661,1712866281439,-500.0,0.00028493,2]
[322185662,1712866281449,-1012.82,0.00028493,2]
[322185663,1712866281458,-500.0,0.00028493,2]
[322185664,1712866281468,-297.29100335,0.00028493,2]
[322185665,1712866281914,-309.32899665,0.00028493,2]
[322185666,1712866281923,-1642.01,0.00028493,2]
[322185667,1712866281932,-500.0,0.00028493,2]
[322185668,1712866281941,-500.0,0.00028493,2]
[322185669,1712866281951,-639.29,0.00028493,2]
[322185670,1712866281961,-196.94321344,0.00028493,2]
[322185671,1712866281970,-500.0,0.00028493,2]
[322185672,1712866281980,-731.62,0.00028493,2]
[322185673,1712866281989,-1110.6,0.00028493,2]
[322185674,1712866282001,-500.0,0.00028493,2]
[322185675,1712866282010,-500.0,0.00028493,2]
[322185676,1712866282021,-500.0,0.00028493,2]
[322185677,1712866282031,-583.7,0.00028493,2]
[322185678,1712866282041,-1997.53,0.00028493,2]
[322185679,1712866282247,-500.0,0.00028493,2]
[322185680,1712866282263,-500.0,0.00028493,2]
[322185681,1712866282273,-500.0,0.00028493,2]
[322185682,1712866282282,-652.59,0.00028493,2]
[322185683,1712866282291,-2716.5,0.00028493,2]
[322185684,1712866282300,-2096.15,0.00028493,2]
[322185685,1712866282309,-500.0,0.00028493,2]
[322185686,1712866282318,-500.0,0.00028493,2]
[322185687,1712866282330,-500.0,0.00028493,2]
[322185688,1712866282339,-500.0,0.00028493,2]
[322185689,1712866282348,-500.0,0.00028493,2]
[322185690,1712866282357,-500.0,0.00028493,2]
[322185691,1712866282367,-500.0,0.00028493,2]
[322185692,1712866282376,-500.0,0.00028493,2]
[322185693,1712866282385,-500.0,0.00028493,2]
[322185694,1712866282394,-500.0,0.00028493,2]
[322185695,1712866282404,-1383.41,0.00028493,2]
[322185696,1712866282413,-1105.5,0.00028493,2]
[322185697,1712866282423,-500.0,0.00028493,2]
[322185698,1712866282433,-702.78,0.00028493,2]
[322185699,1712866282443,-434.0428835,0.00028493,2]
[322185700,1712866282452,-500.0,0.00028493,2]
[322185701,1712866282462,-966.39,0.00028493,2]
[322185702,1712866282471,-500.0,0.00028493,2]
[322185703,1712866282480,-500.0,0.00028493,2]
[322185704,1712866282490,-500.0,0.00028493,2]
[322185705,1712866282500,-500.0,0.00028493,2]
[322185706,1712866282510,-500.0,0.00028493,2]
[322185707,1712866282521,-1189.02,0.00028493,2]
[322185708,1712866282530,-2050.19,0.00028493,2]
[322185709,1712866282539,-500.0,0.00028493,2]
[322185710,1712866282549,-500.0,0.00028493,2]
[322185711,1712866282558,-272.62077602,0.00028493,2]
[322185712,1712866282568,-582.16,0.00028493,2]
[322185713,1712866282577,-530.88831619,0.00028493,2]
[322185714,1712866282587,-1247.32,0.00028493,2]
[322185715,1712866282596,-876.28,0.00028493,2]
[322185716,1712866282606,-855.58,0.00028493,2]
[322185717,1712866282615,-1239.31,0.00028493,2]
[322185718,1712866282625,-745.12,0.00028493,2]
[322185719,1712866282634,-300.0,0.00028493,2]
[322185720,1712866282644,-150.0,0.00028493,2]
[322185721,1712866282653,-2459.61636184,0.00028493,2]
[322185722,1712866282667,-96.62363816,0.00028493,2]
[322185723,1712866282678,-866.37,0.00028493,2]
[322185724,1712866282687,-121.48652277,0.00028493,2]
[322185725,1712866282700,-378.51347723,0.00028493,2]
[322185726,1712866282710,-500.0,0.00028493,2]
[322185727,1712866282719,-415.23885634,0.00028493,2]
[322185728,1712866282730,-576.59114366,0.00028493,2]
[322185729,1712866282739,-500.0,0.00028493,2]
[322185730,1712866282748,-331.88885634,0.00028493,2]
[322185731,1712866282761,-168.11114366,0.00028493,2]
[322185732,1712866282770,-500.0,0.00028493,2]
[322185733,1712866282779,-500.0,0.00028493,2]
[322185734,1712866282789,-500.0,0.00028493,2]
[322185735,1712866282798,-1045.55,0.00028493,2]
[322185736,1712866282807,-782.09,0.00028493,2]
[322185737,1712866282819,-158.88834379,0.00028493,2]
[322185738,1712866282961,532.8208977,0.0001575,2]
[322185739,1712866283124,-476.56979241,0.00027397,2]
[322185740,1712866283156,-260.83,0.00025336,2]
[322185741,1712866283176,-344.33559722,0.00027397,2]
[322185742,1712866283188,-321.30727191,0.00027397,2]
[322185743,1712866283247,-706.1536496,0.00027397,2]
[322185744,1712866283259,-2568.08368886,0.00027397,2]
[322185745,1712866283268,-395.88292592,0.00027397,2]
[322185746,1712866283588,1469.20927421,0.0001575,2]
[322185747,1712866284220,-744.86707408,0.00027397,2]
[322185748,1712866284229,-500.0,0.00027397,2]
[322185749,1712866284238,-402.96900131,0.00027397,2]
[322185750,1712866284256,-97.03099869,0.00027397,2]
[322185751,1712866284265,-500.0,0.00027397,2]
[322185752,1712866284274,-500.0,0.00027397,2]
[322185753,1712866284283,-2040.94,0.00027397,2]
[322185754,1712866284293,-500.0,0.00027397,2]
[322185755,1712866284302,-499.99,0.00027661,2]
[322185756,1712866284312,-4416.45,0.00027671,2]
[322185757,1712866284322,-1140.75,0.00027671,2]
[322185758,1712866284335,-2040.94,0.00027671,2]
[322185759,1712866284345,-500.0,0.00027945,2]
[322185760,1712866284354,-1205.68,0.00027945,2]
[322185761,1712866284363,-1140.75,0.00027945,2]
[322185762,1712866284374,-4416.45,0.00027945,2]
[322185763,1712866284384,-2040.94,0.00027945,2]
[322185764,1712866284393,-1556.94,0.00028219,2]
[322185765,1712866284403,-4786.22,0.00028219,2]
[322185766,1712866284413,-2309.86,0.00028219,2]
[322185767,1712866284422,-1205.68,0.00028219,2]
[322185768,1712866284432,-1140.75,0.00028219,2]
[322185769,1712866284441,-4416.45,0.00028219,2]
[322185770,1712866284450,-472.66165621,0.00028493,2]
[322185771,1712866284459,-500.0,0.00028493,2]
[322185772,1712866284469,-500.0,0.00028493,2]
[322185773,1712866284478,-1904.95,0.00028493,2]
[322185774,1712866284487,-1002.26,0.00028493,2]
[322185775,1712866284497,-500.0,0.00028493,2]
[322185776,1712866284506,-523.61,0.00028493,2]
[322185777,1712866284515,-500.0,0.00028493,2]
[322185778,1712866284524,-1829.68,0.00028493,2]
[322185779,1712866284533,-824.24,0.00028493,2]
[322185780,1712866284542,-500.0,0.00028493,2]
[322185781,1712866284551,-500.0,0.00028493,2]
[322185782,1712866284561,-500.0,0.00028493,2]
[322185783,1712866284570,-500.0,0.00028493,2]
[322185784,1712866284579,-500.0,0.00028493,2]
[322185785,1712866284588,-2009.27,0.00028493,2]
[322185786,1712866284597,-1435.91,0.00028493,2]
[322185787,1712866284606,-743.03,0.00028493,2]
[322185788,1712866284616,-2007.76,0.00028493,2]
[322185789,1712866284625,-500.0,0.00028493,2]
[322185790,1712866284637,-1141.2,0.00028493,2]
[322185791,1712866284646,-500.0,0.00028493,2]
[322185792,1712866284655,-981.46,0.00028493,2]
[322185793,1712866284664,-500.0,0.00028493,2]
[322185794,1712866284673,-500.0,0.00028493,2]
[322185795,1712866284682,-500.0,0.00028493,2]
[322185796,1712866284691,-547.81638838,0.00028493,2]
[322185797,1712866284700,-1101.81,0.00028493,2]
[322185798,1712866284709,-500.0,0.00028493,2]
[322185799,1712866284718,-500.0,0.00028493,2]
[322185800,1712866284727,-766.86,0.00028493,2]
[322185801,1712866284737,-500.0,0.00028493,2]
[322185802,1712866284746,-1735.26,0.00028493,2]
[322185803,1712866284757,-500.0,0.00028493,2]
[322185804,1712866284768,-500.0,0.00028493,2]
[322185805,1712866284777,-500.0,0.00028493,2]
[322185806,1712866284796,-500.0,0.00028493,2]
[322185807,1712866284806,-853.76,0.00028493,2]
[322185808,1712866284816,-569.96508198,0.00028493,2]
[322185809,1712866284825,-500.0,0.00028493,2]
[322185810,1712866284835,-500.0,0.00028493,2]
[322185811,1712866284844,-500.0,0.00028493,2]
[322185812,1712866284854,-874.44,0.00028493,2]
[322185813,1712866284863,-500.0,0.00028493,2]
[322185814,1712866284872,-500.0,0.00028493,2]
[322185815,1712866284883,-500.0,0.00028493,2]
[322185816,1712866284892,-500.0,0.00028493,2]
[322185817,1712866284902,-500.0,0.00028493,2]
[322185818,1712866284914,-500.0,0.00028493,2]
[322185819,1712866284924,-1194.17,0.00028493,2]
[322185820,1712866284934,-2890.68,0.00028493,2]
[322185821,1712866284944,-553.56,0.00028493,2]
[322185822,1712866284954,-153.104055,0.00028493,7]
[322185823,1712866284966,-627.79,0.00028493,2]
[322185824,1712866284975,-500.0,0.00028493,2]
[322185825,1712866284985,-1163.4,0.00028493,2]
[322185826,1712866284995,-150.0,0.00028493,2]
[322185827,1712866285005,-500.0,0.00028493,2]
[322185828,1712866285015,-500.0,0.00028493,2]
[322185829,1712866285024,-27146.98,0.00028493,2]
[322185830,1712866285034,-500.0,0.00028493,2]
[322185831,1712866285045,-843.9,0.00028493,2]
[322185832,1712866285055,-8521.38,0.00028493,2]
[322185833,1712866285066,-500.0,0.00028493,2]
[322185834,1712866285076,-1061.37,0.00028493,2]
[322185835,1712866285087,-500.0,0.00028493,2]
[322185836,1712866285098,-500.0,0.00028493,2]
[322185837,1712866285107,-1619.15,0.00028493,2]
[322185838,1712866285118,-643.14660485,0.00028493,2]
[322185839,1712866285136,-1104.6360013,0.00028493,2]
[322185840,1712866285796,235.70996105,0.00012,2]
[322185841,1712866285999,323.17938632,0.0001575,2]
[322185842,1712866286274,407.81986227,0.0001575,2]
[322185843,1712866286317,-500.0,0.00026794,2]
[322185844,1712866286329,-500.0,0.00027397,2]
[322185845,1712866286339,-500.0,0.00027397,2]
[322185846,1712866286348,-500.0,0.00027397,2]
[322185847,1712866286358,-506.78350663,0.00027397,2]
[322185848,1712866286368,-638.17,0.00027397,2]
[322185849,1712866286378,-549.18,0.00027671,2]
[322185850,1712866286387,-500.0,0.00027671,2]
[322185851,1712866286396,-321.16,0.00027671,2]
[322185852,1712866286407,-2040.94,0.00028219,2]
[322185853,1712866286416,-508.28,0.00028493,2]
[322185854,1712866286426,-2254.14,0.00028493,2]
[322185855,1712866286435,-753.86,0.00028493,2]
[322185856,1712866286446,-6254.21,0.00028493,2]
[322185857,1712866286455,-6238.81,0.00028493,2]
[322185858,1712866286464,-770.01,0.00028493,2]
[322185859,1712866286473,-500.0,0.00028493,2]
[322185860,1712866286483,-761.66,0.00028493,2]
[322185861,1712866286492,-500.0,0.00028493,2]
[322185862,1712866286503,-2369.78,0.00028493,2]
[322185863,1712866286512,-500.0,0.00028493,2]
[322185864,1712866286522,-500.0,0.00028493,2]
[322185865,1712866286532,-500.0,0.00028493,2]
[322185866,1712866286541,-10990.78,0.00028493,2]
[322185867,1712866286551,-1645.65,0.00028493,2]
[322185868,1712866286561,-151.0,0.00028493,7]
[322185869,1712866286571,-4380.45,0.00028493,2]
[322185870,1712866286580,-500.0,0.00028493,2]
[322185871,1712866286590,-1115.09,0.00028493,2]
[322185872,1712866286599,-800.96,0.00028493,2]
[322185873,1712866286609,-2787.2,0.00028493,2]
[322185874,1712866286619,-500.0,0.00028493,2]
[322185875,1712866286629,-6266.29,0.00028493,2]
[322185876,1712866286638,-1566.71,0.00028493,2]
[322185877,1712866286648,-500.0,0.00028493,2]
[322185878,1712866286658,-523.15,0.00028493,2]
[322185879,1712866286668,-500.0,0.00028493,2]
[322185880,1712866286678,-1938.1,0.00028493,2]
[322185881,1712866286688,-500.0,0.00028493,2]
[322185882,1712866286699,-605.01,0.00028493,2]
[322185883,1712866286709,-973.92,0.00028493,2]
[322185884,1712866286719,-500.0,0.00028493,2]
[322185885,1712866286729,-1739.79,0.00028493,2]
[322185886,1712866286739,-1400.27,0.00028493,2]
[322185887,1712866286751,-13292.4,0.00028493,2]
[322185888,1712866286760,-3546.73,0.00028493,2]
[322185889,1712866286769,-500.0,0.00028493,2]
[322185890,1712866286782,-602.04,0.00028493,2]
[322185891,1712866286792,-2566.34,0.00028493,2]
[322185892,1712866286801,-1361.07,0.00028493,2]
[322185893,1712866286810,-500.0,0.00028493,2]
[322185894,1712866286820,-500.0,0.00028493,2]
[322185895,1712866286830,-500.0,0.00028493,2]
[322185896,1712866286839,-1039.63,0.00028493,2]
[322185897,1712866286849,-500.0,0.00028493,2]
[322185898,1712866286858,-846.12,0.00028493,2]
[322185899,1712866286868,-500.0,0.00028493,2]
[322185900,1712866286877,-9925.14,0.00028493,2]
[322185901,1712866286887,-500.0,0.00028493,2]
[322185902,1712866286896,-1798.57,0.00028493,2]
[322185903,1712866286905,-500.0,0.00028493,2]
[322185904,1712866286914,-500.0,0.00028493,2]
[322185905,1712866286923,-1452.3,0.00028493,2]
[322185906,1712866286933,-4132.98,0.00028493,2]
[322185907,1712866286945,-500.0,0.00028493,2]
[322185908,1712866286956,-793.79,0.00028493,2]
[322185909,1712866286965,-539.59,0.00028493,2]
[322185910,1712866286983,-500.0,0.00028493,2]
[322185911,1712866286998,-18467.26616151,0.00028493,2]
[322185912,1712866287037,-1373.33383849,0.00028493,2]
[322185913,1712866287048,-500.0,0.00028493,2]
[322185914,1712866287059,-982.81120531,0.00028493,2]
[322185915,1712866287073,-116.44879469,0.00028493,2]
[322185916,1712866287083,-500.0,0.00028493,2]